Cogmind - Beta 9.6 *** ADVENTURER MODE // 2020.04.28 @ 20:35:59 Player: BinarySpace Result: Destroyed by S-10 Pest with Light Assault Rifle Performance ------------- Evolutions (0) 0 Regions Visited (2) 400 Robots Destroyed (22) 110 Value Destroyed (575) 575 Prototype IDs (0) 0 Alien Tech Used (0) 0 Bonus (0) 0 TOTAL SCORE: 1085 Bonus ------- None Cogmind --------- Core Integrity 0/250 Matter 285/300 Energy 93/100 System Corruption 1% Temperature Cool (5) Movement Rolling (120) Ox2 Location -10/Mines Parts ------- > --- POWER (1) -------- (None) > --- PROPULSION (2) --- Compact Wheel > --- UTILITY (2) ------ Large Storage Unit Large Storage Unit > --- WEAPON (2) ------- Hammer > --- INVENTORY (16) --- Light Ion Engine Improved Ion Engine Improved Ion Engine Improved Ion Engine Improved Ion Engine Light Nuclear Core Improved Heat Sink Cooling System Cooling System Large Storage Unit Improved Terrain Scanner Medium Armor Plating Plasma Cutter Peak State ------------ > --- POWER ------------ Ion Engine > --- PROPULSION ------- Light Treads Wheel > --- UTILITY ---------- Large Storage Unit Large Storage Unit > --- WEAPON ----------- Medium Laser Plasma Cutter > --- INVENTORY -------- Light Ion Engine Improved Ion Engine Improved Ion Engine Improved Ion Engine Improved Ion Engine Compact Wheel Improved Terrain Scanner Small Laser Assault Rifle Plasma Cutter Plasma Cutter Plasma Cutter [Rating: 10] Favorites ----------- Power Ion Engine Engine Ion Engine Propulsion Light Treads Treads Light Treads Wheel Wheel Utility Large Storage Unit Device Improved Terrain Scanner Storage Large Storage Unit Processor Seismic Analyzer Weapon Medium Laser Energy Gun Medium Laser Energy Cannon Beam Cannon Ballistic Gun Assault Rifle Special Weapon Plasma Cutter Impact Weapon Hammer Build | -11 -10 -10 ------- Run | Scr Mat Min Slots Evolved . | . . . Power . | . . . Propulsion . | . . . Utility . | . . . Weapon . | . . . Parts Attached 22 | 7 10 5 Power 1 | 1 . . Engine 1 | 1 . . Core . | . . . Reactor . | . . . Propulsion 4 | 2 . 2 Treads 1 | 1 . . Leg . | . . . Wheel 3 | 1 . 2 Hover . | . . . Flight . | . . . Utility 4 | 2 2 . Device 1 | 1 . . Storage 2 | . 2 . Processor 1 | 1 . . Hackware . | . . . Protection . | . . . Artifact . | . . . Weapon 13 | 2 8 3 Energy Gun 4 | 1 2 1 Energy Cannon 1 | . . 1 Ballistic Gun 2 | 1 1 . Ballistic Cannon . | . . . Launcher . | . . . Special Weapon 5 | . 5 . Impact Weapon 1 | . . 1 Slashing Weapon . | . . . Piercing Weapon . | . . . Special Melee Weapon . | . . . Unidentified Prototypes . | . . . Parts Lost 12 | . 4 8 Power 1 | . . 1 Propulsion 3 | . . 3 Utility . | . . . Weapon 8 | . 4 4 Highest Loss Streak 4 | . 2 4 Average Slot Usage (%) 90 | . 99 65 Engine 11 | . 14 5 Treads 11 | . 14 2 Wheel 12 | . 14 8 Storage 27 | . 27 28 Energy Gun 11 | . 14 3 Ballistic Gun 5 | . 5 5 Special Weapon 5 | . 7 . Impact Weapon 2 | . . 9 Naked Turns . | . . . Heaviest Build 41 | 10 41 41 Greatest Support 20 | 20 10 16 Greatest Overweight (x) 11 | . 4 11 Average Overweight (x) 3 | . 3 3 Largest Inventory Capacity 16 | 4 16 16 Average Capacity 15 | 4 15 16 Most Carried 15 | 4 15 15 Average Carried 11 | 1 11 13 Final Capacity 16 | 4 16 16 Final Carried 15 | 4 15 13 Class Distribution -------------------- 100% | Mutant Dominant Class ---------------- Mutant | -10/Materials Mutant | -10/Mines Resources | -11 -10 -10 ----------- Run | Scr Mat Min Matter Collected 444 | 208 213 23 Remotely . | . . . Salvage Created 839 | 51 518 270 Parts 50 | 5 39 6 Haulers Intercepted . | . . . Recyclers Shooed . | . . . Parts Field Recycled . | . . . Retrieved Matter . | . . . Parts Self-Destructed . | . . . Prevented . | . . . Kills | -11 -10 -10 ------- Run | Scr Mat Min Combat Hostiles Destroyed 18 | . 14 4 Melee 1 | . . 1 Guns 12 | . 10 2 Cannons 3 | . 3 . Classes Destroyed 6 | 1 3 2 Tunneler 2 | 2 . . Recycler 1 | . . 1 Watcher 1 | . 1 . Swarmer 6 | . 6 . Grunt 10 | . 8 2 Sentry 2 | . . 2 Best Kill Streak 6 | 2 6 2 Combat Bots Only 6 | . 6 2 Max Kills in Single Turn 2 | 1 2 1 Gunslinging 1 | . 1 . Exploded . | . . . Melee 1 | . . 1 Uniques/NPCs Destroyed . | . . . Combat | -11 -10 -10 -------- Run | Scr Mat Min Damage Taken 1058 | . 503 555 Core 257 | . 104 153 Absorbed by Shields . | . . . Core Remaining (%) 100 | 100 . . Volleys Fired 46 | 5 31 10 Largest 2 | 2 2 2 Hottest 90 | 70 90 70 Shots Fired 84 | 10 59 15 Gun 60 | 10 38 12 Cannon 3 | . . 3 Launcher . | . . . Special 21 | . 21 . Kinetic 24 | 5 12 7 Thermal 56 | 5 47 4 Explosive . | . . . Electromagnetic 4 | . . 4 Robot Hit Streak 26 | 8 26 18 Robot Miss Streak 2 | 1 1 2 Penetration Max . | . . . Secondary Targets 3 | . 3 . Max Gunslinging Chain 1 | . 1 . Shots Hit Robots 95 | 8 53 34 Core Hits 33 | 2 24 7 Critical Hits 3 | . 3 . Critical Kills 1 | . 1 . Critical Parts Destroyed 2 | . 2 . Melee Attacks 22 | . . 22 Impact 22 | . . 22 Slashing . | . . . Piercing . | . . . Sneak Attacks 2 | . . 2 Combat Hostiles . | . . . Follow-up Attacks . | . . . Damage Inflicted 1400 | 100 654 646 Guns 647 | 100 411 136 Cannons 36 | . . 36 Explosions 38 | . . 38 Melee 436 | . . 436 Ramming 23 | . 23 . Kinetic 251 | 50 122 79 Thermal 646 | 50 509 87 Explosive . | . . . Electromagnetic 44 | . . 44 Impact 436 | . . 436 Slashing . | . . . Piercing . | . . . Highest Corruption 1 | . 1 1 Average Corruption 1 | . 1 1 Corruption Purged . | . . . Effects 8 | . 4 4 Message Errors 5 | . 3 2 Energy Discharges 2 | . 1 1 Data Loss (minor) 1 | . . 1 Overload Shots . | . . . Overflow Damage 41 | . . 41 Projectiles . | . . . Explosions 9 | . . 9 Melee 32 | . . 32 Knockbacks 6 | . . 6 Impact 5 | . . 5 Kinetic . | . . . Secondary 1 | . . 1 Self-Inflicted Damage 48 | . 11 37 Shots 1 | . . 1 Rammed 1 | . 1 . Targets Rammed 1 | . 1 . Kicked . | . . . Crushed . | . . . Highest Temperature 156 | 36 156 48 Average Temperature 45 | 16 59 22 Received Heat Transfer 477 | . 246 231 Siege Activations . | . . . Robots Corrupted . | . . . Combat Hostiles . | . . . Parts Fried 1 | . . 1 Impact Corruptions 3 | . . 3 Robots Melted 1 | . 1 . Combat Hostiles 1 | . 1 . Parts Melted 9 | 1 8 . Heat Transferred 1853 | 148 1544 161 Parts Sabotaged . | . . . Parts Stolen . | . . . Parts Stripped . | . . . Power Chain Reactions 1 | . . 1 Missiles Intercepted . | . . . Alert | -11 -10 -10 ------- Run | Scr Mat Min Peak Influence 130 | 10 130 102 Average Influence 50 | 2 45 75 Maximum Alert Level . | . . . Low Security (%) 100 | 100 100 100 Level 1 . | . . . Level 2 . | . . . Level 3 . | . . . Level 4 . | . . . Level 5 . | . . . High Security . | . . . Max Security . | . . . Squads Dispatched 2 | . 2 . Investigation 2 | . 2 . Extermination . | . . . Reinforcement . | . . . Assault . | . . . Garrison . | . . . Intercept . | . . . Construction Impeded . | . . . Haulers Reinforced . | . . . Stealth | -11 -10 -10 --------- Run | Scr Mat Min Distress Signals 1 | . 1 . Communications Jammed . | . . . Distress Signals . | . . . Times Spotted 31 | . 24 7 Peak Tracking Total 7 | . 7 3 Tactical Retreats 1 | . . 1 Traps | -11 -10 -10 ------- Run | Scr Mat Min Traps Triggered 3 | . 3 . Indirectly . | . . . Trap Hack Attempts . | . . . Triggered . | . . . Disarmed . | . . . Reprogrammed . | . . . Reused . | . . . Traps Extracted . | . . . Installed . | . . . Triggered . | . . . Machines | -11 -10 -10 ---------- Run | Scr Mat Min Machines Disabled 1 | . . 1 Max in Single Turn 1 | . . 1 Machines Sabotaged . | . . . Garrisons Compromised . | . . . Overloaded Fab Kills . | . . . Fab Network Shutdowns . | . . . Hacking | -11 -10 -10 --------- Run | Scr Mat Min Machines Accessed 7 | . 7 . Terminals 7 | . 7 . Fabricators . | . . . Repair Stations . | . . . Recycling Units . | . . . Scanalyzers . | . . . Garrison Access . | . . . Total Hacks 20 | . 20 . Successful 11 | . 11 . Failed 9 | . 9 . Catastrophic . | . . . Database Lockouts . | . . . Manual 21 | . 21 . Terminals 20 | . 20 . Fabricators . | . . . Repair Stations . | . . . Recycling Units . | . . . Scanalyzers . | . . . Garrison Access . | . . . Terminal Hacks 7 | . 7 . Part Schematic 2 | . 2 . Emergency Access Points 1 | . 1 . Alert Level 1 | . 1 . Unreport Threat 1 | . 1 . Patrol Status 1 | . 1 . Hauler Manifests 1 | . 1 . Fabricator Hacks . | . . . Repair Station Hacks . | . . . Recycling Unit Hacks . | . . . Scanalyzer . | . . . Garrison Access Hacks . | . . . Unauthorized Hacks 4 | . 4 . Terminals 4 | . 4 . Track 4 | . 4 . Fabricators . | . . . Repair Stations . | . . . Recycling Units . | . . . Scanalyzers . | . . . Garrison Access . | . . . Data Cores Recovered . | . . . Used . | . . . Hacking Detections 6 | . 6 . Full Trace Events 1 | . 1 . Feedback Events 1 | . 1 . Corruption 1 | . 1 . Feedback Blocked . | . . . Robot Schematics Acquired . | . . . Robots Built . | . . . Matter . | . . . Time . | . . . Total Robot Build Rating . | . . . Part Schematics Acquired 2 | . 2 . Parts Built . | . . . Matter . | . . . Time . | . . . Total Part Build Rating . | . . . Parts Repaired . | . . . Time . | . . . Parts Recycled . | . . . Recycled Matter . | . . . Retrieved Matter . | . . . Retrieved Components . | . . . Parts Scanalyzed . | . . . Part Schematics Acquired . | . . . Parts Damaged . | . . . Bothacking | -11 -10 -10 ------------ Run | Scr Mat Min Used RIF Installer . | . . . Robots Hacked . | . . . Non-combat . | . . . Combat . | . . . Robot Hacks Applied . | . . . Relay Couplers Released . | . . . Robots Rewired . | . . . Allies Hacked . | . . . Hacks Repelled . | . . . Allies | -11 -10 -10 -------- Run | Scr Mat Min Total Allies . | . . . Largest Group . | . . . Highest-Rated Group . | . . . Highest-Rated Ally . | . . . Total Orders . | . . . Ally Attacks . | . . . Total Damage . | . . . Kills . | . . . Allies Corrupted . | . . . Allies Melted . | . . . Intel | -11 -10 -10 ------- Run | Scr Mat Min Robot Analysis Total . | . . . Derelict Logs Recovered . | . . . Drone Launches . | . . . Drone Recoveries . | . . . Exploration | -11 -10 -10 ------------- Run | Scr Mat Min Turns Passed 1543 | 75 1085 383 Spaces Moved 1032 | 57 809 166 Core 29 | 9 . 20 Treads 3 | 3 . . Legs . | . . . Wheels 1000 | 45 809 146 Hover . | . . . Flight . | . . . Fastest Speed 50 | 50 80 120 Average Speed 120 | 79 112 177 Slowest Speed 600 | 160 120 600 Overloaded Moves . | . . . Propulsion Burnouts . | . . . Robots Hopped . | . . . Cave-ins Triggered . | . . . Exploration Rate (%) 41 | 4 94 27 Regions Visited 2 Branch Regions 1 Pre-discovered Areas . | . . . Known Exits Taken . | . . . Unknown Exits Taken 2 | 1 1 . Scrap Searched 1 | . . 1 Spaces Dug . | . . . Terrain Destroyed 3 | . . 3 Melee . | . . . Projectile . | . . . AOE 3 | . . 3 Actions | -11 -10 -10 --------- Run | Scr Mat Min Total 1183 | 72 904 207 Wait 38 | . 35 3 Move 1030 | 56 808 166 Hop . | . . . Pick Up 21 | 4 16 1 Fast Attach 11 | 7 2 2 Attach 7 | . 4 3 Detach . | . . . Swap 4 | . 4 . Drop 3 | . 3 . Fire 46 | 5 31 10 Melee 22 | . . 22 Ram 1 | . 1 . Kick . | . . . Crush . | . . . Escape Stasis . | . . . Rewire . | . . . Trap . | . . . Miscellaneous . | . . . Route ------- -11/Scrapyard -10/Materials (discovered 5 exits: [*Mat x3] / [*Min x2]) -10/Mines History --------- Turn | Location | Event 5 | -11/Scrapyard | Discovered new exit (range 15) 76 | -11/Scrapyard | Entered Materials 165 | -10/Materials | Discovered new exit (range 14) 172 | -10/Materials | Discovered new exit (range 14) 302 | -10/Materials | Build established: Mutant 399 | -10/Materials | Discovered new exit (range 7) 879 | -10/Materials | Discovered new exit (range 8) 990 | -10/Materials | Discovered new exit (range 5) 1161 | -10/Materials | Entered Mines 1243 | -10/Mines | Core integrity fell below 50% 1289 | -10/Mines | Lost 4 parts (2n2w) 1339 | -10/Mines | Core integrity fell below 20% 1349 | -10/Mines | Lost 3 parts (1p1n1w) 1544 | -10/Mines | Destroyed by S-10 Pest with Light Assault Rifle Last Messages --------------- 01326_ G-47 Trooper destroyed. 01339_ Destroyed Heat Sink. 01339_ G-34 Mercenary system corrupted by crushing effect. 01340_ G-34 Mercenary system terminally corrupted. 01340_ Sml. Laser fried. 01348_ Acquired Imp. Heat Sink. 01361_ Sneak attack on R-06 Scavenger. 01361_ Destroyed Tractor Beam. 01361_ R-06 Scavenger system corrupted by crushing effect. 01447_ Sneak attack on R-06 Scavenger. 01447_ Destroyed Com. Wheel. 01447_ R-06 Scavenger system corrupted by crushing effect. 01447_ R-06 Scavenger knocked back. 01450_ R-06 Scavenger destroyed. 01464_ Acquired Com. Wheel. 01480_ Acquired Beam Cannon. 01502_ WVDR5U0YVJ0DD6IXR92WS 01513_ K-01 Serf collects debris. 01531_ S-10 Pest knocked back. 01541_ Beam Cannon destroyed. Map ----- +----------------------------------------------------+ | ???????????????????????##????????????????????????? | | ??????????????????????? ????????????????????????? | | ???????????????????????# ????????????????????????? | | ???????????????????????# ###???######????????????? | | ?????????????????######? #??## ##???????????? | | ????????????????##"!!"### #?## #???????????? | | ????????????????#""!!""## ### #???????????? | | ????????????????# ## ## #???????????? | | ????????????????#!%!% ### #####???????????? | | ????????????????###++### ##???????????????? | | ????????????????#%!! # ##????????????????? | | ????????????????#% ####?????????????????? | | ????????????????# ##????????????????????? | | ????????????????# #?????????????????????? | | ????????????????## #?????????????????????? | | ?????????????????## #######?#######???????? | | ??????????????????####### % #?# #???????? | | ????????????????????????# ##### #?# #???????? | | ????????????????????????# ##??# #?# """ #???????? | | ??????????????????????### ##?# ### """ #???????? | | ?????????????????????## #?# % %"" #???????? | | ?????????????????????# #?##### #???????? | | ?????????????????????# ##?????# #???????? | | ?????????????????????## s #??????#######???????? | | ??????????????????????# #????????????????????? | | ??????????????????????# s@ ##????????????????????? | | ??????????????????????## #?????????????????????? | | ????????????#??????#???#s ##??????????? ????????? | | ???????????? ????# ?## t#????????? ???????? | | ????????????"" ### ##k #??????## ???????? | | ????????????"" #????? ???????? | | ????????????"" ##??? #???????? | | ?????????? #### ### #???????? | | ??????????? ?????## #????????? | | ????????????? ???###### #??????????? | | ?????????????# ?????? | | ?????????????# ?????? | | ?????????????## ##### #### ?????? | | ?????????????????????## ## ##????????????? | | ??????????????????????## ##?# #?????????????? | | ???????????????????????## #??? #?????????????? | | ????????????????????????# ???? #?????????????? | | ???????????????????????? ???? # ????????????? | | ??????????????????????? ???? ???????????? | | ??????????????????????? ????? ??????????? | | ?????????????????????? #?????? ?????????? | | ?????????????????????? #??????? ?????????? | | ?????????????????????## ##??????????????????? | | ??????????????????????## ####???????????????????? | | ???????????????????????# ???????????????????????? | +----------------------------------------------------+ Best States ------------- Heat Dissipation 25 Energy Generation 10 Energy Capacity 250 Matter Stores 300 Matter Capacity 300 Sight Range 16 Terrain Scan Range 16 Terrain Scan Density 60 Resistance: KI 20 Resistance: TH 20 Resistance: EX 20 Resistance: EM 20 Resistance: I 20 Resistance: S 20 Resistance: P 20 Evasion (%) 44 Recoil Reduction 1 Offensive Hacking 10 Item Schematics ----------------- Lrg. Storage Unit | -10/Materials | Hacked Hcp. Storage Unit | -10/Materials | Hacked Robot Schematics ------------------ None Fabricated ------------ Nothing Alien Tech Used ----------------- None Achievements -------------- None Challenges ------------ None Game ------ Seed FocalMiniTriangulator Manual? 0 Play Time 00:13:10 Cumulative 41.3 hours Start 2020.04.28 @ 17:00:46 End 2020.04.28 @ 20:35:59 Sessions 1 Manual Loads 0 Difficulty Adventurer Special Mode None Game No. 17 Rogue 2 Adventurer 15 Explorer 0 Win Type - Total 1 Types 0/0/1/0/0/0/0 Lore% 25 Gallery% 38 Achievement% 35 Wizard Run 0 Options --------- ASCII 0 Keyboard 0 Movement Numpad Keybinds 0 Fullscreen 1 Font 18/SmallcapsGlow Map View 76x50 Tactical HUD 1 Map Filters NONE Filters NONE Steam 0 RUN: e12e63d8-00df-42ed-9e80-d8d763683e0d